[Event "SVK Extraliga 2019-20"]
[Site "Slovakia"]
[Date "2019.11.24"]
[Round "4.1"]
[White "Pechac, Jergus"]
[Black "Vovk, Yuri"]
[Result "0-1"]
[ECO "E18"]
[WhiteElo "2491"]
[BlackElo "2577"]
[Annotator "ChessBase"]
[PlyCount "110"]
[EventDate "2019.10.19"]
[EventType "team-tourn"]
[EventCountry "SVK"]
[SourceTitle "playchess.com"]
[Source "ChessBase"]
[SourceQuality "1"]
[WhiteTeam "Zilina"]
[BlackTeam "Košice"]
[TimeControl "40/5400+30:1800+30"]

1. d4 {[%emt 0:00:00]} Nf6 {[%emt 0:00:00]} 2. c4 {[%emt 0:00:00]} e6 {[%emt 0:00:00]} 3. Nf3 {[%emt 0:00:00]} b6 {[%emt 0:00:00]} 4. g3 {[%emt 0:00:00]} Bb7 {[%emt 0:00:00]} 5. Bg2 {[%emt 0:00:00]} Be7 {[%emt 0:00:00]} 6. O-O {[%emt 0:00:00]} O-O {[%emt 0:00:01]} 7. Nc3 {[%emt 0:00:03]} Ne4 {[%emt 0:00:05]} 8. Bd2 {[%emt 0:00:03]} d5 {[%emt 0:00:13]} 9. cxd5 {[%emt 0:00:12]} exd5 {[%emt 0:01:40]} 10. Bf4 {[%emt 0:00:33]} Nd7 {[%emt 0:00:31]} 11. Rc1 {[%emt 0:00:33]} c5 {[%emt 0:00:07]} 12. Qb3 {[%emt 0:00:55]} c4 {[%emt 0:16:33]} 13. Qd1 {[%emt 0:00:05]} Nxc3 {[%emt 0:03:30]} 14. bxc3 {[%emt 0:00:05]} b5 {[%emt 0:00:10]} 15. h4 {[%emt 0:05:20]} a5 {[%emt 0:03:00]} 16. Nd2 {[%emt 0:15:47]} Nb6 {[%emt 0:04:34]} 17. e4 {[%emt 0:05:22]} b4 {[%emt 0:07:02]} 18. e5 {[%emt 0:03:33]} Bc8 {[%emt 0:05:31]} 19. Qh5 {[%emt 0:04:37]} Be6 {[%emt 0:02:11]} 20. Bg5 {[%emt 0:00:13]} Bxg5 {[%emt 0:09:38]} 21. hxg5 {[%emt 0:00:42]} Na4 {[%emt 0:00:39]} 22. f4 {[%emt 0:03:44]} Nxc3 {[%emt 0:01:24]} 23. f5 {[%emt 0:11:05]} Bxf5 {[%emt 0:01:51]} 24. Rxf5 {[%emt 0:01:41]} g6 {[%emt 0:00:13]} 25. Qh6 {[%emt 0:03:36]} gxf5 {[%emt 0:03:12]} 26. Kf2 {[%emt 0:00:10]} Ra6 {[%emt 0:02:50]} 27. Qxa6 {[%emt 0:00:54]} Qxg5 {[%emt 0:00:18]} 28. Rc2 {[%emt 0:00:49]} f4 {[%emt 0:09:46]} 29. Nf1 {[%emt 0:22:59]} fxg3+ {[%emt 0:17:47]} 30. Kg1 {[%emt 0:01:32]} Qf4 {[%emt 0:08:01]} 31. Rd2 {[%emt 0:11:09]} Nb1 {[%emt 0:00:57]} 32. Re2 {[%emt 0:00:08]} Qxd4+ {[%emt 0:00:14]} 33. Re3 {[%emt 0:00:04]} Re8 {[%emt 0:02:52]} 34. Qf6 {[%emt 0:01:44]} Re6 {[%emt 0:00:15]} 35. Qd8+ {[%emt 0:00:20]} Kg7 {[%emt 0:00:00]} 36. Qxd5 {[%emt 0:00:22]} Qb6 {[%emt 0:02:14]} 37. Qxc4 {[%emt 0:05:36]} Rxe5 {[%emt 0:00:01]} 38. Qg4+ {[%emt 0:01:30]} Kf8 {[%emt 0:00:02]} 39. Qxg3 {[%emt 0:02:05]} Re6 {[%emt 0:00:01]} 40. Kh2 {[%emt 0:01:30]} Rh6+ {[%emt 0:01:48]} 41. Bh3 {[%emt 0:30:17]} Nc3 {[%emt 0:30:39]} 42. Nd2 {[%emt 0:00:00]} Nd5 {[%emt 0:00:00]} 43. Re1 {[%emt 0:00:00]} Rxh3+ {[%emt 0:00:00]} 44. Kxh3 {[%emt 0:00:00]} Qh6+ {[%emt 0:00:00]} 45. Kg4 {[%emt 0:00:00]} Qxd2 {[%emt 0:00:00]} 46. Qe5 {[%emt 0:00:00]} Qg2+ {[%emt 0:00:00]} 47. Kh4 {[%emt 0:00:00]} Qf2+ {[%emt 0:00:00]} 48. Qg3 {[%emt 0:00:00]} Qxg3+ {[%emt 0:00:00]} 49. Kxg3 {[%emt 0:00:00]} Nc3 {[%emt 0:00:00]} 50. Re5 {[%emt 0:00:00]} a4 {[%emt 0:00:00]} 51. Ra5 {[%emt 0:00:00]} a3 {[%emt 0:00:24]} 52. Kf3 {[%emt 0:00:00]} Nxa2 {[%emt 0:00:12]} 53. Ke3 {[%emt 0:00:00]} b3 {[%emt 0:01:14]} 54. Kd2 {[%emt 0:00:00]} b2 {[%emt 0:01:09]} 55. Rb5 {[%emt 0:00:00]} Nb4 {[%emt 0:00:16]} 0-1

[Event "SVK Extraliga 2019-20"]
[Site "Slovakia"]
[Date "2019.11.24"]
[Round "4.1"]
[White "Cernousek, Lukas"]
[Black "Gazik, Viktor"]
[Result "1-0"]
[ECO "A52"]
[WhiteElo "2461"]
[BlackElo "2508"]
[Annotator "ChessBase"]
[PlyCount "63"]
[EventDate "2019.10.19"]
[EventType "team-tourn"]
[EventCountry "SVK"]
[SourceTitle "playchess.com"]
[Source "ChessBase"]
[SourceQuality "1"]
[WhiteTeam "Dubnica"]
[BlackTeam "Podhajska"]
[TimeControl "40/5400+30:1800+30"]

1. d4 {[%emt 0:00:00]} Nf6 {[%emt 0:00:31]} 2. c4 {[%emt 0:00:00]} e5 {[%emt 0:03:25]} 3. dxe5 {[%emt 0:00:00]} Ng4 {[%emt 0:00:02]} 4. Bf4 {[%emt 0:00:00]} g5 {[%emt 0:00:04]} 5. Bg3 {[%emt 0:00:01]} Bg7 {[%emt 0:00:05]} 6. Nf3 {[%emt 0:00:13]} Nc6 {[%emt 0:00:05]} 7. h4 {[%emt 0:00:38]} Ngxe5 {[%emt 0:05:45]} 8. Nxe5 {[%emt 0:00:07]} Nxe5 {[%emt 0:00:07]} 9. Nc3 {[%emt 0:00:04]} g4 {[%emt 0:19:32]} 10. h5 {[%emt 0:00:22]} O-O {[%emt 0:07:23]} 11. h6 {[%emt 0:00:06]} Bf6 {[%emt 0:07:07]} 12. Nd5 {[%emt 0:12:37]} d6 {[%emt 0:02:06]} 13. Qc2 {[%emt 0:06:21]} c6 {[%emt 0:12:17]} 14. Nxf6+ {[%emt 0:02:20]} Qxf6 {[%emt 0:00:02]} 15. e4 {[%emt 0:16:32]} d5 {[%emt 0:08:40]} 16. Rh5 {[%emt 0:07:36]} Re8 {[%emt 0:10:46]} 17. O-O-O {[%emt 0:01:22]} Ng6 {[%emt 0:04:52]} 18. cxd5 {[%emt 0:14:35]} cxd5 {[%emt 0:00:02]} 19. Bb5 {[%emt 0:05:56]} Rf8 {[%emt 0:12:47]} 20. exd5 {[%emt 0:01:14]} a6 {[%emt 0:00:24]} 21. Bd3 {[%emt 0:04:42]} Bd7 {[%emt 0:00:02]} 22. Kb1 {[%emt 0:00:10]} Rac8 {[%emt 0:00:28]} 23. Qd2 {[%emt 0:05:40]} Rfe8 {[%emt 0:00:23]} 24. Qg5 {[%emt 0:04:46]} Qb6 {[%emt 0:02:09]} 25. d6 {[%emt 0:04:40]} Qd4 {[%emt 0:00:12]} 26. Bc2 {[%emt 0:06:00]} Qc4 {[%emt 0:01:49]} 27. Bb3 {[%emt 0:00:02]} Qe4+ {[%emt 0:00:59]} 28. Ka1 {[%emt 0:00:02]} Qe2 {[%emt 0:01:23]} 29. Qd5 {[%emt 0:02:40]} Be6 {[%emt 0:00:19]} 30. Qd4 {[%emt 0:00:08]} f6 {[%emt 0:00:40]} 31. d7 {[%emt 0:00:13]} Bxb3 {[%emt 0:00:33]} 32. axb3 {[%emt 0:00:38]} 1-0

[Event "SVK Extraliga 2019-20"]
[Site "Slovakia"]
[Date "2019.11.24"]
[Round "4.2"]
[White "Mihok, Oliver"]
[Black "Motuz, Karol"]
[Result "1-0"]
[ECO "C83"]
[WhiteElo "2559"]
[BlackElo "2365"]
[Annotator "ChessBase"]
[PlyCount "55"]
[EventDate "2019.10.19"]
[EventType "team-tourn"]
[EventCountry "SVK"]
[SourceTitle "playchess.com"]
[Source "ChessBase"]
[SourceQuality "1"]
[WhiteTeam "Podhajska"]
[BlackTeam "Dubnica"]
[TimeControl "40/5400+30:1800+30"]

1. e4 {[%emt 0:00:00]} e5 {[%emt 0:00:00]} 2. Nf3 {[%emt 0:00:00]} Nc6 {[%emt 0:00:00]} 3. Bb5 {[%emt 0:00:00]} a6 {[%emt 0:00:11]} 4. Ba4 {[%emt 0:00:00]} Nf6 {[%emt 0:00:23]} 5. O-O {[%emt 0:00:00]} Nxe4 {[%emt 0:01:00]} 6. d4 {[%emt 0:00:26]} b5 {[%emt 0:00:10]} 7. Bb3 {[%emt 0:00:04]} d5 {[%emt 0:00:13]} 8. dxe5 {[%emt 0:00:05]} Be6 {[%emt 0:00:08]} 9. Be3 {[%emt 0:00:33]} Be7 {[%emt 0:01:08]} 10. c3 {[%emt 0:00:33]} Nc5 {[%emt 0:05:29]} 11. Nbd2 {[%emt 0:05:37]} Nd3 {[%emt 0:02:06]} 12. Qb1 {[%emt 0:16:00]} Ndxe5 {[%emt 0:01:06]} 13. Nxe5 {[%emt 0:00:26]} Nxe5 {[%emt 0:00:05]} 14. Bd4 {[%emt 0:00:13]} Ng6 {[%emt 0:04:23]} 15. f4 {[%emt 0:12:16]} c5 {[%emt 0:02:21]} 16. Bxg7 {[%emt 0:03:54]} Rg8 {[%emt 0:00:10]} 17. Bh6 {[%emt 0:02:58]} Nh4 {[%emt 0:02:42]} 18. Rf2 {[%emt 0:24:45]} Nf5 {[%emt 0:07:51]} 19. Bg5 {[%emt 0:01:17]} Bxg5 {[%emt 0:00:59]} 20. fxg5 {[%emt 0:00:06]} Qxg5 {[%emt 0:02:09]} 21. Nf3 {[%emt 0:03:14]} Qg7 {[%emt 0:34:17]} 22. Bxd5 {[%emt 0:01:16]} Rd8 {[%emt 0:17:12]} 23. Bxe6 {[%emt 0:00:47]} fxe6 {[%emt 0:00:36]} 24. Qe4 {[%emt 0:00:08]} Qd7 {[%emt 0:06:07]} 25. Re1 {[%emt 0:03:51]} Qd5 {[%emt 0:03:08]} 26. Qf4 {[%emt 0:01:44]} h5 {[%emt 0:02:09]} 27. Ng5 {[%emt 0:03:59]} Rd6 {[%emt 0:02:48]} 28. Ne4 {[%emt 0:01:12]} 1-0

[Event "SVK Extraliga 2019-20"]
[Site "Slovakia"]
[Date "2019.11.24"]
[Round "4.2"]
[White "Vetoshko, Volodymyr"]
[Black "Kociscak, Jiri"]
[Result "1/2-1/2"]
[ECO "C88"]
[WhiteElo "2497"]
[BlackElo "2510"]
[Annotator "ChessBase"]
[PlyCount "53"]
[EventDate "2019.10.19"]
[EventType "team-tourn"]
[EventCountry "SVK"]
[SourceTitle "playchess.com"]
[Source "ChessBase"]
[SourceQuality "1"]
[WhiteTeam "Košice"]
[BlackTeam "Zilina"]
[TimeControl "40/5400+30:1800+30"]

1. e4 {[%emt 0:00:00]} e5 {[%emt 0:01:29]} 2. Nf3 {[%emt 0:00:00]} Nc6 {[%emt 0:00:07]} 3. Bb5 {[%emt 0:00:07]} a6 {[%emt 0:00:07]} 4. Ba4 {[%emt 0:00:04]} Nf6 {[%emt 0:00:07]} 5. O-O {[%emt 0:00:19]} Be7 {[%emt 0:00:09]} 6. Re1 {[%emt 0:00:13]} b5 {[%emt 0:00:07]} 7. Bb3 {[%emt 0:00:03]} O-O {[%emt 0:00:06]} 8. a4 {[%emt 0:00:49]} b4 {[%emt 0:13:29]} 9. d4 {[%emt 0:00:04]} d6 {[%emt 0:01:48]} 10. dxe5 {[%emt 0:00:01]} dxe5 {[%emt 0:05:14]} 11. Nbd2 {[%emt 0:00:20]} Bc5 {[%emt 0:09:43]} 12. Qe2 {[%emt 0:00:49]} Qe7 {[%emt 0:06:49]} 13. Bd5 {[%emt 0:30:47]} Nxd5 {[%emt 0:10:05]} 14. exd5 {[%emt 0:00:04]} Nd4 {[%emt 0:00:07]} 15. Nxd4 {[%emt 0:14:17]} Bxd4 {[%emt 0:02:25]} 16. Nb3 {[%emt 0:04:05]} Qd6 {[%emt 0:07:08]} 17. Nxd4 {[%emt 0:04:44]} exd4 {[%emt 0:00:06]} 18. Qc4 {[%emt 0:01:47]} Bb7 {[%emt 0:06:37]} 19. Qxd4 {[%emt 0:01:25]} Qxd5 {[%emt 0:11:05]} 20. Qxd5 {[%emt 0:00:29]} Bxd5 {[%emt 0:00:06]} 21. Bf4 {[%emt 0:05:56]} Rac8 {[%emt 0:04:01]} 22. f3 {[%emt 0:07:41]} h6 {[%emt 0:06:51]} 23. Kf2 {[%emt 0:02:10]} Be6 {[%emt 0:03:00]} 24. Re5 {[%emt 0:01:12]} c5 {[%emt 0:01:15]} 25. Rd1 {[%emt 0:01:03]} Rc6 {[%emt 0:00:33]} 26. a5 {[%emt 0:01:45]} Rfc8 {[%emt 0:01:34]} 27. Re2 {[%emt 0:04:44]} 1/2-1/2

[Event "SVK Extraliga 2019-20"]
[Site "Slovakia"]
[Date "2019.11.24"]
[Round "4.2"]
[White "Malinovsky, Karel"]
[Black "Haring, Filip"]
[Result "0-1"]
[ECO "B32"]
[WhiteElo "2472"]
[BlackElo "2298"]
[Annotator "ChessBase"]
[PlyCount "132"]
[EventDate "2019.10.19"]
[EventType "team-tourn"]
[EventCountry "SVK"]
[SourceTitle "playchess.com"]
[Source "ChessBase"]
[SourceQuality "1"]
[WhiteTeam "Liptovska"]
[BlackTeam "Liptovska"]
[TimeControl "40/5400+30:1800+30"]

1. e4 {[%emt 0:00:00]} c5 {[%emt 0:00:00]} 2. Nf3 {[%emt 0:00:00]} Nc6 {[%emt 0:00:08]} 3. d4 {[%emt 0:00:00]} cxd4 {[%emt 0:00:07]} 4. Nxd4 {[%emt 0:00:00]} e5 {[%emt 0:00:48]} 5. Nb5 {[%emt 0:00:12]} d6 {[%emt 0:00:11]} 6. c4 {[%emt 0:00:43]} Be7 {[%emt 0:00:15]} 7. N1c3 {[%emt 0:01:03]} a6 {[%emt 0:00:18]} 8. Na3 {[%emt 0:00:12]} f5 {[%emt 0:00:56]} 9. exf5 {[%emt 0:00:21]} Bxf5 {[%emt 0:00:08]} 10. Nc2 {[%emt 0:00:33]} Nf6 {[%emt 0:01:08]} 11. Ne3 {[%emt 0:00:20]} Be6 {[%emt 0:00:19]} 12. g3 {[%emt 0:02:17]} O-O {[%emt 0:00:56]} 13. Bg2 {[%emt 0:00:20]} Qd7 {[%emt 0:00:59]} 14. O-O {[%emt 0:06:38]} Bd8 {[%emt 0:02:02]} 15. Ncd5 {[%emt 0:07:38]} Ne7 {[%emt 0:08:05]} 16. b3 {[%emt 0:22:30]} Nexd5 {[%emt 0:14:47]} 17. Nxd5 {[%emt 0:04:09]} Nxd5 {[%emt 0:07:04]} 18. Bxd5 {[%emt 0:00:10]} Bb6 {[%emt 0:01:06]} 19. Qg4 {[%emt 0:04:21]} Rae8 {[%emt 0:06:49]} 20. Be3 {[%emt 0:03:04]} Bxe3 {[%emt 0:16:46]} 21. fxe3 {[%emt 0:00:09]} Rxf1+ {[%emt 0:00:05]} 22. Rxf1 {[%emt 0:00:08]} Qe7 {[%emt 0:00:42]} 23. Qe4 {[%emt 0:04:38]} b6 {[%emt 0:00:51]} 24. Bxe6+ {[%emt 0:04:29]} Qxe6 {[%emt 0:00:02]} 25. Qc6 {[%emt 0:00:16]} b5 {[%emt 0:06:02]} 26. cxb5 {[%emt 0:18:04]} axb5 {[%emt 0:00:08]} 27. Qxb5 {[%emt 0:02:59]} d5 {[%emt 0:07:10]} 28. Rc1 {[%emt 0:07:40]} Rf8 {[%emt 0:05:54]} 29. Qd3 {[%emt 0:00:48]} e4 {[%emt 0:05:58]} 30. Qd2 {[%emt 0:02:11]} Qf7 {[%emt 0:05:24]} 31. Qe2 {[%emt 0:02:29]} Qa7 {[%emt 0:01:07]} 32. Rf1 {[%emt 0:01:24]} Rd8 {[%emt 0:02:45]} 33. Rd1 {[%emt 0:00:34]} Qc5 {[%emt 0:01:37]} 34. Qd2 {[%emt 0:01:30]} h5 {[%emt 0:00:37]} 35. Qd4 {[%emt 0:01:17]} Qc2 {[%emt 0:00:25]} 36. Rd2 {[%emt 0:01:04]} Qb1+ {[%emt 0:01:17]} 37. Kg2 {[%emt 0:00:22]} Qe1 {[%emt 0:01:23]} 38. Rf2 {[%emt 0:01:24]} h4 {[%emt 0:00:29]} 39. gxh4 {[%emt 0:02:03]} Rd6 {[%emt 0:01:40]} 40. h5 {[%emt 0:00:10]} Qc1 {[%emt 0:02:56]} 41. Qa7 {[%emt 0:06:06]} Kh7 {[%emt 0:05:10]} 42. Qd4 {[%emt 0:10:01]} Qc8 {[%emt 0:05:26]} 43. Qe5 {[%emt 0:03:36]} Qg4+ {[%emt 0:03:18]} 44. Qg3 {[%emt 0:00:22]} Qd7 {[%emt 0:00:02]} 45. h3 {[%emt 0:01:36]} Qe7 {[%emt 0:06:55]} 46. Kh2 {[%emt 0:05:47]} Re6 {[%emt 0:07:02]} 47. Rd2 {[%emt 0:02:31]} Ra6 {[%emt 0:01:11]} 48. h4 {[%emt 0:03:28]} Qf7 {[%emt 0:01:47]} 49. Rg2 {[%emt 0:00:58]} Qe7 {[%emt 0:01:45]} 50. Qg5 {[%emt 0:00:40]} Rf6 {[%emt 0:01:40]} 51. a4 {[%emt 0:00:50]} Qc7+ {[%emt 0:00:43]} 52. Qg3 {[%emt 0:00:10]} Qd7 {[%emt 0:01:03]} 53. Rf2 {[%emt 0:00:58]} Rb6 {[%emt 0:00:30]} 54. a5 {[%emt 0:00:46]} Rh6 {[%emt 0:00:14]} 55. Qe5 {[%emt 0:00:31]} Qb7 {[%emt 0:00:48]} 56. Qf5+ {[%emt 0:00:39]} Kh8 {[%emt 0:00:28]} 57. Rc2 {[%emt 0:00:37]} Rc6 {[%emt 0:00:30]} 58. Qf8+ {[%emt 0:00:05]} Kh7 {[%emt 0:00:03]} 59. Qf5+ {[%emt 0:00:05]} Kh8 {[%emt 0:00:06]} 60. Rg2 {[%emt 0:01:06]} Qc7+ {[%emt 0:00:38]} 61. Kh3 {[%emt 0:00:39]} Rf6 {[%emt 0:00:25]} 62. Qxd5 {[%emt 0:00:38]} Rf3+ {[%emt 0:00:33]} 63. Kg4 {[%emt 0:00:06]} Qc8+ {[%emt 0:01:10]} 64. Kg5 {[%emt 0:00:08]} Qe8 {[%emt 0:00:36]} 65. h6 {[%emt 0:01:22]} gxh6+ {[%emt 0:00:26]} 66. Kxh6 {[%emt 0:00:31]} Rf6+ {[%emt 0:00:05]} 0-1

[Event "SVK Extraliga 2019-20"]
[Site "Slovakia"]
[Date "2019.11.24"]
[Round "4.2"]
[White "Rigo, Zsolt"]
[Black "Michalik, Peter"]
[Result "1/2-1/2"]
[ECO "B47"]
[WhiteElo "2396"]
[BlackElo "2592"]
[Annotator "ChessBase"]
[PlyCount "55"]
[EventDate "2019.10.19"]
[EventType "team-tourn"]
[EventCountry "SVK"]
[SourceTitle "playchess.com"]
[Source "ChessBase"]
[SourceQuality "1"]
[WhiteTeam "Streda"]
[BlackTeam "Modra"]
[TimeControl "40/5400+30:1800+30"]

1. e4 {[%emt 0:00:00]} c5 {[%emt 0:00:00]} 2. Nf3 {[%emt 0:00:00]} Nc6 {[%emt 0:00:16]} 3. d4 {[%emt 0:00:06]} cxd4 {[%emt 0:00:05]} 4. Nxd4 {[%emt 0:00:04]} e6 {[%emt 0:00:12]} 5. Nc3 {[%emt 0:01:43]} Qc7 {[%emt 0:00:08]} 6. Be2 {[%emt 0:00:26]} Nf6 {[%emt 0:00:08]} 7. O-O {[%emt 0:01:02]} Be7 {[%emt 0:00:11]} 8. Be3 {[%emt 0:02:23]} O-O {[%emt 0:00:30]} 9. f4 {[%emt 0:04:19]} d6 {[%emt 0:00:43]} 10. Qe1 {[%emt 0:07:51]} Nxd4 {[%emt 0:00:41]} 11. Bxd4 {[%emt 0:00:10]} e5 {[%emt 0:00:05]} 12. Be3 {[%emt 0:00:53]} exf4 {[%emt 0:01:19]} 13. Bxf4 {[%emt 0:00:27]} Be6 {[%emt 0:04:39]} 14. Qg3 {[%emt 0:03:07]} Rac8 {[%emt 0:21:44]} 15. Kh1 {[%emt 0:06:02]} Ne8 {[%emt 0:05:15]} 16. Bd3 {[%emt 0:02:47]} Qb6 {[%emt 0:04:23]} 17. Nd5 {[%emt 0:08:50]} Bxd5 {[%emt 0:00:29]} 18. exd5 {[%emt 0:00:02]} Qd8 {[%emt 0:05:14]} 19. Be3 {[%emt 0:07:21]} b6 {[%emt 0:04:55]} 20. Rae1 {[%emt 0:11:04]} g6 {[%emt 0:06:45]} 21. Bh6 {[%emt 0:03:54]} Ng7 {[%emt 0:06:07]} 22. Qf4 {[%emt 0:00:10]} f5 {[%emt 0:03:35]} 23. Bxg7 {[%emt 0:12:48]} Kxg7 {[%emt 0:00:07]} 24. Re6 {[%emt 0:00:02]} Rf6 {[%emt 0:10:34]} 25. Rfe1 {[%emt 0:02:27]} Rxe6 {[%emt 0:00:08]} 26. Rxe6 {[%emt 0:03:16]} Qc7 {[%emt 0:04:35]} 27. c3 {[%emt 0:02:37]} Rf8 {[%emt 0:00:24]} 28. Qc4 {[%emt 0:01:51]} 1/2-1/2

[Event "SVK Extraliga 2019-20"]
[Site "Slovakia"]
[Date "2019.11.24"]
[Round "4.2"]
[White "Macko, Miroslav"]
[Black "Zilka, Stepan"]
[Result "1/2-1/2"]
[ECO "D45"]
[WhiteElo "2303"]
[BlackElo "2551"]
[Annotator "ChessBase"]
[PlyCount "107"]
[EventDate "2019.10.19"]
[EventType "team-tourn"]
[EventCountry "SVK"]
[SourceTitle "playchess.com"]
[Source "ChessBase"]
[SourceQuality "1"]
[WhiteTeam "Bratislava"]
[BlackTeam "Prakovce"]
[TimeControl "40/5400+30:1800+30"]

1. d4 {[%emt 0:00:00]} d5 {[%emt 0:00:02]} 2. c4 {[%emt 0:00:00]} e6 {[%emt 0:00:34]} 3. Nf3 {[%emt 0:00:02]} Nf6 {[%emt 0:00:07]} 4. Nc3 {[%emt 0:00:56]} c6 {[%emt 0:00:48]} 5. e3 {[%emt 0:01:07]} Nbd7 {[%emt 0:00:06]} 6. Qc2 {[%emt 0:02:37]} Bd6 {[%emt 0:00:13]} 7. b3 {[%emt 0:03:04]} O-O {[%emt 0:00:31]} 8. Bb2 {[%emt 0:03:58]} Qe7 {[%emt 0:00:06]} 9. Be2 {[%emt 0:02:47]} b6 {[%emt 0:06:08]} 10. O-O {[%emt 0:01:30]} Bb7 {[%emt 0:00:03]} 11. e4 {[%emt 0:08:39]} Nxe4 {[%emt 0:00:12]} 12. Nxe4 {[%emt 0:00:11]} dxe4 {[%emt 0:00:03]} 13. Qxe4 {[%emt 0:00:09]} f5 {[%emt 0:01:47]} 14. Qc2 {[%emt 0:01:59]} c5 {[%emt 0:00:09]} 15. Rad1 {[%emt 0:06:52]} cxd4 {[%emt 0:13:34]} 16. Nxd4 {[%emt 0:03:21]} Rf6 {[%emt 0:10:52]} 17. Bf3 {[%emt 0:08:32]} Bxh2+ {[%emt 0:03:02]} 18. Kxh2 {[%emt 0:04:02]} Rh6+ {[%emt 0:00:23]} 19. Kg1 {[%emt 0:00:09]} Qh4 {[%emt 0:02:51]} 20. Bh5 {[%emt 0:00:11]} Rxh5 {[%emt 0:19:02]} 21. f3 {[%emt 0:00:37]} Nf6 {[%emt 0:02:33]} 22. Qe2 {[%emt 0:16:02]} Re8 {[%emt 0:00:18]} 23. Nb5 {[%emt 0:03:03]} Qh2+ {[%emt 0:07:02]} 24. Kf2 {[%emt 0:00:08]} Rg5 {[%emt 0:00:09]} 25. Rg1 {[%emt 0:01:22]} Qh4+ {[%emt 0:13:11]} 26. Ke3 {[%emt 0:12:10]} e5 {[%emt 0:04:15]} 27. Kd2 {[%emt 0:02:24]} e4 {[%emt 0:00:52]} 28. Bxf6 {[%emt 0:01:36]} gxf6 {[%emt 0:00:01]} 29. Kc2 {[%emt 0:01:25]} Bc6 {[%emt 0:00:47]} 30. Nd6 {[%emt 0:04:34]} exf3 {[%emt 0:00:26]} 31. Qd3 {[%emt 0:02:25]} Rxg2+ {[%emt 0:04:03]} 32. Kc3 {[%emt 0:01:36]} Qh2 {[%emt 0:05:19]} 33. Nxe8 {[%emt 0:02:07]} Qe5+ {[%emt 0:01:05]} 34. Qd4 {[%emt 0:00:11]} Bxe8 {[%emt 0:00:12]} 35. Rge1 {[%emt 0:04:58]} Re2 {[%emt 0:00:08]} 36. Rxe2 {[%emt 0:00:33]} fxe2 {[%emt 0:00:10]} 37. Rg1+ {[%emt 0:00:12]} Kf8 {[%emt 0:00:36]} 38. Qxe5 {[%emt 0:00:20]} fxe5 {[%emt 0:00:03]} 39. Kd2 {[%emt 0:00:06]} Bh5 {[%emt 0:00:06]} 40. Rh1 {[%emt 0:00:26]} Bg6 {[%emt 0:01:28]} 41. Kxe2 {[%emt 0:32:46]} Ke7 {[%emt 0:30:13]} 42. b4 {[%emt 0:01:12]} f4 {[%emt 0:02:07]} 43. c5 {[%emt 0:00:00]} bxc5 {[%emt 0:00:00]} 44. bxc5 {[%emt 0:00:00]} h5 {[%emt 0:00:00]} 45. Rg1 {[%emt 0:00:00]} Be8 {[%emt 0:00:00]} 46. Rg7+ {[%emt 0:00:00]} Ke6 {[%emt 0:00:00]} 47. Rxa7 {[%emt 0:00:00]} Bb5+ {[%emt 0:00:00]} 48. Kf3 {[%emt 0:00:00]} Bc6+ {[%emt 0:00:00]} 49. Kf2 {[%emt 0:00:00]} e4 {[%emt 0:00:00]} 50. Rh7 {[%emt 0:00:00]} Kd5 {[%emt 0:00:00]} 51. Rxh5+ {[%emt 0:00:00]} Kd4 {[%emt 0:00:00]} 52. Rh6 {[%emt 0:00:00]} e3+ {[%emt 0:00:00]} 53. Ke1 {[%emt 0:00:00]} Kxc5 {[%emt 0:00:00]} 54. Rf6 {[%emt 0:00:00]} 1/2-1/2

[Event "SVK Extraliga 2019-20"]
[Site "Slovakia"]
[Date "2019.11.24"]
[Round "4.2"]
[White "Haring, Filip"]
[Black "Malinovsky, Karel"]
[Result "*"]
[ECO "B32"]
[WhiteElo "2298"]
[BlackElo "2472"]
[Annotator "ChessBase"]
[PlyCount "26"]
[EventDate "2019.10.19"]
[EventType "team-tourn"]
[EventCountry "SVK"]
[SourceTitle "playchess.com"]
[Source "ChessBase"]
[SourceQuality "1"]
[WhiteTeam "Liptovska"]
[TimeControl "40/5400+30:1800+30"]

1. e4 {[%emt 0:00:00]} c5 {[%emt 0:00:00]} 2. Nf3 {[%emt 0:00:00]} Nc6 {[%emt 0:00:08]} 3. d4 {[%emt 0:00:00]} cxd4 {[%emt 0:00:07]} 4. Nxd4 {[%emt 0:00:00]} e5 {[%emt 0:00:48]} 5. Nb5 {[%emt 0:00:12]} d6 {[%emt 0:00:11]} 6. c4 {[%emt 0:00:43]} Be7 {[%emt 0:00:15]} 7. N1c3 {[%emt 0:01:03]} a6 {[%emt 0:00:18]} 8. Na3 {[%emt 0:00:12]} f5 {[%emt 0:00:56]} 9. exf5 {[%emt 0:00:21]} Bxf5 {[%emt 0:00:08]} 10. Nc2 {[%emt 0:00:33]} Nf6 {[%emt 0:01:08]} 11. Ne3 {[%emt 0:00:20]} Be6 {[%emt 0:00:19]} 12. g3 {[%emt 0:02:17]} O-O {[%emt 0:00:56]} 13. Bg2 {[%emt 0:00:20]} Qd7 {[%emt 0:00:59]} *

[Event "SVK Extraliga 2019-20"]
[Site "Slovakia"]
[Date "2019.11.24"]
[Round "4.3"]
[White "Bernasek, Jan"]
[Black "Nayhebaver, Martin"]
[Result "1-0"]
[ECO "E39"]
[WhiteElo "2490"]
[BlackElo "2471"]
[Annotator "ChessBase"]
[PlyCount "73"]
[EventDate "2019.10.19"]
[EventType "team-tourn"]
[EventCountry "SVK"]
[SourceTitle "playchess.com"]
[Source "ChessBase"]
[SourceQuality "1"]
[WhiteTeam "Košice"]
[BlackTeam "Zilina"]
[TimeControl "40/5400+30:1800+30"]

1. d4 {[%emt 0:00:00]} Nf6 {[%emt 0:00:00]} 2. c4 {[%emt 0:00:00]} e6 {[%emt 0:00:22]} 3. Nc3 {[%emt 0:00:00]} Bb4 {[%emt 0:00:20]} 4. Qc2 {[%emt 0:00:00]} c5 {[%emt 0:01:30]} 5. dxc5 {[%emt 0:02:54]} O-O {[%emt 0:00:15]} 6. Nf3 {[%emt 0:00:37]} Na6 {[%emt 0:00:33]} 7. g3 {[%emt 0:00:34]} Nxc5 {[%emt 0:00:56]} 8. Bg2 {[%emt 0:00:06]} b6 {[%emt 0:05:16]} 9. O-O {[%emt 0:02:13]} Bb7 {[%emt 0:00:19]} 10. Rd1 {[%emt 0:04:20]} Nce4 {[%emt 0:10:54]} 11. Nxe4 {[%emt 0:04:42]} Bxe4 {[%emt 0:04:01]} 12. Qa4 {[%emt 0:01:08]} Be7 {[%emt 0:04:05]} 13. Bf4 {[%emt 0:02:07]} Qc8 {[%emt 0:01:15]} 14. Ne5 {[%emt 0:07:44]} Bxg2 {[%emt 0:16:43]} 15. Kxg2 {[%emt 0:01:20]} Rd8 {[%emt 0:00:34]} 16. Bg5 {[%emt 0:06:26]} h6 {[%emt 0:10:08]} 17. Bxf6 {[%emt 0:02:49]} Bxf6 {[%emt 0:00:08]} 18. Nxd7 {[%emt 0:00:23]} Bxb2 {[%emt 0:01:20]} 19. Rab1 {[%emt 0:00:57]} Bc3 {[%emt 0:01:32]} 20. Rb3 {[%emt 0:03:56]} Be5 {[%emt 0:06:18]} 21. Rbd3 {[%emt 0:02:47]} Qb7+ {[%emt 0:02:58]} 22. f3 {[%emt 0:06:28]} Bc7 {[%emt 0:00:23]} 23. h4 {[%emt 0:10:06]} Rdc8 {[%emt 0:06:59]} 24. h5 {[%emt 0:08:11]} a6 {[%emt 0:05:54]} 25. Rd4 {[%emt 0:04:55]} b5 {[%emt 0:02:17]} 26. Qb4 {[%emt 0:01:07]} e5 {[%emt 0:08:03]} 27. Nf6+ {[%emt 0:08:12]} Kh8 {[%emt 0:05:49]} 28. Rd7 {[%emt 0:00:25]} Qc6 {[%emt 0:02:47]} 29. Rxf7 {[%emt 0:03:07]} Qxc4 {[%emt 0:00:04]} 30. Rxg7 {[%emt 0:05:16]} Kxg7 {[%emt 0:01:06]} 31. Rd7+ {[%emt 0:00:04]} Qf7 {[%emt 0:00:22]} 32. Rxf7+ {[%emt 0:00:44]} Kxf7 {[%emt 0:00:05]} 33. Ng4 {[%emt 0:00:12]} Rh8 {[%emt 0:01:45]} 34. Qe4 {[%emt 0:00:25]} Ke6 {[%emt 0:00:45]} 35. f4 {[%emt 0:03:10]} Rag8 {[%emt 0:01:12]} 36. Qc6+ {[%emt 0:00:27]} Bd6 {[%emt 0:00:24]} 37. fxe5 {[%emt 0:00:10] Kd5} 1-0